fUSD/lending_fUSD_20240525
["ID","MTS","AMOUNT","RATE_DAILY","PERIOD"]
[327935250,1716675043529,-151.0,0.00025,7]
[327935251,1716675043538,-266.724653,0.00025,7]
[327935252,1716675043546,-266.724653,0.00025,7]
[327935253,1716675043555,-151.0,0.00025,7]
[327935254,1716675043564,-205.7975636,0.00025005,2]
[327935255,1716675043573,-10000.0,0.00025006,2]
[327935256,1716675043583,-205.7975636,0.0002502,2]
[327935257,1716675043592,-900.0,0.00025053,2]
[327935258,1716675043602,-700.0,0.00025053,2]
[327935259,1716675043611,-379.73,0.00025125,2]
[327935260,1716675043621,-205.7975636,0.00025161,2]
[327935261,1716675043631,-150.13312094,0.00025161,2]
[327935262,1716675043640,-154.53303561,0.00025201,2]
[327935263,1716675043649,-150.13312094,0.00025269,2]
[327935264,1716675043660,-205.7975636,0.00025307,2]
[327935265,1716675043670,-2005.18444528,0.00025361,2]
[327935267,1716675043679,-205.7975636,0.00025434,2]
[327935269,1716675043689,-1984.33991306,0.00025437,2]
[327935271,1716675043698,-309.542277,0.00025479,2]
[327935272,1716675043707,-60999.12702656,0.00025488,2]
[327935273,1716675043716,-34352.07514668,0.00025488,2]
[327935274,1716675043726,-151.0,0.00025488,7]
[327935276,1716675043735,-151.0,0.00025488,7]
[327935278,1716675043745,-162.146351,0.00025488,7]
[327935280,1716675043753,-151.0,0.00025488,7]
[327935282,1716675043762,-151.0,0.00025488,7]
[327935283,1716675043771,-162.146351,0.00025488,7]
[327935284,1716675043781,-151.0,0.00025488,7]
[327935285,1716675043790,-151.0,0.00025488,7]
[327935286,1716675043799,-236.938807,0.00025488,7]
[327935287,1716675043809,-151.0,0.00025488,7]
[327935288,1716675043818,-151.0,0.00025488,7]
[327935289,1716675043828,-151.0,0.00025488,7]
[327935290,1716675043837,-151.0,0.00025488,7]
[327935291,1716675043846,-154.275545,0.00025488,7]
[327935292,1716675043856,-151.0,0.00025488,7]
[327935293,1716675043866,-151.0,0.00025488,7]
[327935294,1716675043875,-151.0,0.00025488,7]
[327935295,1716675043885,-151.0,0.00025488,7]
[327935296,1716675043894,-266.724653,0.00025488,7]
[327935297,1716675043903,-266.724653,0.00025488,7]
[327935298,1716675043912,-151.0,0.00025488,7]
[327935299,1716675043921,-151.0,0.00025518,7]
[327935300,1716675043930,-151.0,0.00025518,7]
[327935301,1716675043939,-175.371095,0.00025518,7]
[327935302,1716675043948,-151.0,0.00025518,7]
[327935303,1716675043957,-151.0,0.00025518,7]
[327935304,1716675043966,-151.0,0.00025518,7]
[327935305,1716675043975,-151.0,0.00025518,7]
[327935306,1716675043984,-151.0,0.00025518,7]
[327935307,1716675043993,-151.0,0.00025518,7]
[327935308,1716675044002,-151.0,0.00025518,7]
[327935309,1716675044011,-151.0,0.00025518,7]
[327935310,1716675044020,-151.0,0.00025518,7]
[327935311,1716675044029,-151.0,0.00025518,7]
[327935312,1716675044037,-151.0,0.00025518,7]
[327935313,1716675044047,-151.0,0.00025518,7]
[327935314,1716675044055,-151.0,0.00025518,7]
[327935315,1716675044065,-151.0,0.00025518,7]
[327935316,1716675044074,-151.0,0.00025518,7]
[327935317,1716675044083,-163.019012,0.00025518,7]
[327935318,1716675044092,-900.0,0.00025601,2]
[327935319,1716675044101,-700.0,0.00025601,2]
[327935320,1716675044110,-154.53303561,0.0002561,2]
[327935321,1716675044120,-205.7975636,0.00025619,2]
[327935322,1716675044129,-159.08274939,0.00025656,2]
[327935323,1716675044139,-205.7975636,0.00025711,2]
[327935324,1716675044148,-21772.95426353,0.00025741,2]
[327935325,1716675044157,-5762.0,0.00025794,2]
[327935326,1716675044166,-975.0,0.00025794,2]
[327935327,1716675044175,-357.0,0.00025794,2]
[327935328,1716675044184,-613.0,0.00025794,2]
[327935329,1716675044193,-1644.0,0.00025794,2]
[327935330,1716675044202,-575.229,0.00025794,2]
[327935331,1716675044211,-1225.0,0.00025794,2]
[327935332,1716675044220,-1264.0,0.00025794,2]
[327935333,1716675044229,-2397.0,0.00025794,2]
[327935334,1716675044238,-809.0,0.00025794,2]
[327935335,1716675044248,-150.0,0.00025794,2]
[327935336,1716675044258,-151.0,0.00025794,7]
[327935337,1716675044267,-151.0,0.00025794,7]
[327935338,1716675044276,-151.0,0.00025794,7]
[327935339,1716675044287,-191.822317,0.00025794,7]
[327935340,1716675044297,-191.822317,0.00025794,7]
[327935341,1716675044307,-151.0,0.00025794,7]
[327935342,1716675044317,-151.0,0.00025794,7]
[327935343,1716675044327,-151.0,0.00025794,7]
[327935344,1716675044336,-151.0,0.00025794,7]
[327935345,1716675044345,-226.056258,0.00025794,7]
[327935346,1716675044355,-151.0,0.00025794,7]
[327935347,1716675044364,-151.0,0.00025794,7]
[327935348,1716675044374,-226.056258,0.00025794,7]
[327935349,1716675044383,-151.0,0.00025794,7]
[327935350,1716675044392,-151.0,0.00025794,7]
[327935351,1716675044401,-151.0,0.00025794,7]
[327935352,1716675044409,-151.0,0.00025794,7]
[327935353,1716675044419,-151.0,0.00025794,7]
[327935354,1716675044428,-450.070366,0.00025794,7]
[327935355,1716675044437,-450.070366,0.00025794,7]
[327935356,1716675044447,-151.0,0.00025794,7]
[327935357,1716675044456,-157.84366425,0.00025824,2]
[327935358,1716675044466,-150.13312094,0.00025865,2]
[327935359,1716675044484,-163.36,0.0002589,2]
[327935360,1716675044496,-1984.33991306,0.00025994,2]
[327935361,1716675044506,-3000.0,0.00026,2]
[327935362,1716675044516,-157.84366425,0.00026012,2]
[327935363,1716675044527,-150.0,0.00026079,2]
[327935364,1716675044537,-287.20692423,0.00026121,2]
[327935365,1716675044547,-900.0,0.00026149,2]
[327935366,1716675044558,-700.0,0.00026149,2]
[327935367,1716675044568,-283.349224,0.00026149,7]
[327935368,1716675044578,-151.0,0.00026149,7]
[327935369,1716675044588,-289.627863,0.00026149,7]
[327935370,1716675044598,-151.0,0.00026149,7]
[327935371,1716675044608,-467.847101,0.00026149,7]
[327935372,1716675044618,-151.0,0.00026149,7]
[327935373,1716675044627,-467.847101,0.00026149,7]
[327935374,1716675044637,-151.0,0.00026149,7]
[327935375,1716675044647,-151.0,0.00026149,7]
[327935376,1716675044656,-151.0,0.00026149,7]
[327935377,1716675044666,-164.0,0.0002622,2]
[327935378,1716675044676,-445.0,0.0002622,2]
[327935379,1716675044685,-1650.0,0.0002622,2]
[327935380,1716675044695,-1235.988,0.0002622,2]
[327935381,1716675044706,-237.0,0.0002622,2]
[327935382,1716675044717,-150.0,0.0002622,2]
[327935383,1716675044728,-3155.0,0.0002622,2]
[327935384,1716675044739,-289.0,0.0002622,2]
[327935385,1716675044750,-5137.0,0.0002622,2]
[327935386,1716675044760,-1466.0,0.0002622,2]
[327935387,1716675044771,-37920.0,0.0002622,2]
[327935388,1716675044781,-1061.0,0.0002622,2]
[327935389,1716675044791,-151.0,0.0002622,7]
[327935390,1716675044800,-286.606042,0.0002622,7]
[327935391,1716675044810,-151.0,0.0002622,7]
[327935392,1716675044820,-151.0,0.0002622,7]
[327935393,1716675044829,-175.077954,0.0002622,7]
[327935394,1716675044839,-151.0,0.0002622,7]
[327935395,1716675044849,-151.0,0.0002622,7]
[327935396,1716675044858,-151.0,0.0002622,7]
[327935397,1716675044869,-151.0,0.0002622,7]
[327935398,1716675044879,-151.0,0.0002622,7]
[327935399,1716675044888,-151.0,0.0002622,7]
[327935400,1716675044898,-332.410801,0.0002622,7]
[327935401,1716675044908,-332.410801,0.0002622,7]
[327935402,1716675044919,-368.658978,0.0002622,7]
[327935403,1716675044928,-368.658978,0.0002622,7]
[327935404,1716675044939,-151.0,0.0002622,7]
[327935405,1716675044949,-151.0,0.0002622,7]
[327935406,1716675044959,-151.0,0.0002622,7]
[327935407,1716675044969,-164.466534,0.0002622,7]
[327935408,1716675044979,-164.466534,0.0002622,7]
[327935409,1716675044990,-151.0,0.0002622,7]
[327935410,1716675045000,-151.0,0.0002622,7]
[327935411,1716675045010,-151.0,0.0002622,7]
[327935412,1716675045020,-151.0,0.0002622,7]
[327935413,1716675045030,-194.149248,0.0002622,7]
[327935414,1716675045040,-194.149248,0.0002622,7]
[327935415,1716675045050,-151.0,0.0002622,7]
[327935416,1716675045059,-152.788858,0.0002622,7]
[327935417,1716675045069,-162.146351,0.0002622,7]
[327935418,1716675045079,-151.0,0.0002622,7]
[327935419,1716675045094,-151.0,0.0002622,7]
[327935420,1716675045104,-162.146351,0.0002622,7]
[327935421,1716675045115,-151.0,0.0002622,7]
[327935422,1716675045126,-151.0,0.0002622,7]
[327935423,1716675045136,-151.0,0.0002622,7]
[327935424,1716675045147,-151.0,0.0002622,7]
[327935425,1716675045158,-151.0,0.0002622,7]
[327935426,1716675045168,-153.27574,0.0002622,7]
[327935427,1716675045178,-151.0,0.0002622,7]
[327935428,1716675045188,-151.0,0.0002622,7]
[327935429,1716675045199,-151.0,0.0002622,7]
[327935430,1716675045209,-266.724653,0.0002622,7]
[327935431,1716675045219,-266.724653,0.0002622,7]
[327935432,1716675045229,-151.0,0.0002622,7]
[327935433,1716675045240,-154.53303561,0.00026262,2]
[327935434,1716675045251,-309.542277,0.00026301,2]
[327935435,1716675045262,-151.02,0.0002632,2]
[327935436,1716675045273,-151.0,0.0002633,7]
[327935437,1716675045284,-151.0,0.0002633,7]
[327935438,1716675045294,-151.0,0.0002633,7]
[327935439,1716675045304,-151.0,0.0002633,7]
[327935440,1716675045314,-153.832487,0.0002633,7]
[327935441,1716675045325,-151.0,0.0002633,7]
[327935442,1716675045334,-151.0,0.0002633,7]
[327935443,1716675045344,-151.0,0.0002633,7]
[327935444,1716675045354,-151.0,0.0002633,7]
[327935445,1716675045364,-151.0,0.0002633,7]
[327935446,1716675045375,-151.0,0.0002633,7]
[327935447,1716675045385,-151.0,0.0002633,7]
[327935448,1716675045394,-226.056258,0.0002633,7]
[327935449,1716675045403,-151.0,0.0002633,7]
[327935450,1716675045417,-151.0,0.0002633,7]
[327935451,1716675045428,-226.056258,0.0002633,7]
[327935452,1716675045438,-151.0,0.0002633,7]
[327935453,1716675045448,-151.0,0.0002633,7]
[327935454,1716675045459,-164.206659,0.0002633,7]
[327935455,1716675045469,-151.0,0.0002633,7]
[327935456,1716675045479,-151.0,0.0002633,7]
[327935457,1716675045489,-151.0,0.0002633,7]
[327935458,1716675045499,-450.070366,0.0002633,7]
[327935459,1716675045509,-450.070366,0.0002633,7]
[327935460,1716675045519,-151.0,0.0002633,7]
[327935461,1716675045529,-162.146351,0.0002633,7]
[327935462,1716675045538,-151.0,0.0002633,7]
[327935463,1716675045548,-151.0,0.0002633,7]
[327935464,1716675045558,-162.146351,0.0002633,7]
[327935465,1716675045568,-151.0,0.0002633,7]
[327935466,1716675045577,-151.0,0.0002633,7]
[327935467,1716675045588,-151.0,0.0002633,7]
[327935468,1716675045598,-151.0,0.0002633,7]
[327935469,1716675045607,-151.0,0.0002633,7]
[327935470,1716675045617,-151.0,0.0002633,7]
[327935471,1716675045626,-151.0,0.0002633,7]
[327935472,1716675045636,-151.0,0.0002633,7]
[327935473,1716675045646,-151.0,0.0002633,7]
[327935474,1716675045656,-266.724653,0.0002633,7]
[327935475,1716675045665,-266.724653,0.0002633,7]
[327935477,1716675045675,-60999.12702656,0.0002633,2]
[327935478,1716675045684,-34352.07514668,0.0002633,2]
[327935479,1716675045694,-151.0,0.00026391,7]
[327935480,1716675045703,-151.0,0.00026391,7]
[327935482,1716675045713,-151.0,0.00026391,7]
[327935483,1716675045724,-151.0,0.00026391,7]
[327935484,1716675045734,-151.0,0.00026391,7]
[327935485,1716675045743,-151.0,0.00026391,7]
[327935486,1716675045753,-202.312435,0.00026391,7]
[327935488,1716675045762,-202.312435,0.00026391,7]
[327935490,1716675045772,-151.0,0.00026391,7]
[327935491,1716675045782,-151.0,0.00026391,7]
[327935492,1716675045791,-151.0,0.00026391,7]
[327935493,1716675045801,-151.0,0.00026391,7]
[327935494,1716675045811,-151.0,0.00026391,7]
[327935495,1716675045820,-151.0,0.00026391,7]
[327935496,1716675045830,-151.0,0.00026391,7]
[327935497,1716675045840,-151.0,0.00026391,7]
[327935498,1716675045849,-151.0,0.00026391,7]
[327935499,1716675045858,-151.0,0.00026391,7]
[327935500,1716675045868,-151.0,0.00026391,7]
[327935501,1716675045878,-151.0,0.00026391,7]
[327935502,1716675045888,-151.0,0.00026391,7]
[327935503,1716675045898,-151.0,0.00026391,7]
[327935504,1716675045907,-156.337864,0.00026391,7]
[327935505,1716675045916,-151.0,0.00026391,7]
[327935506,1716675045926,-151.0,0.00026391,7]
[327935507,1716675045935,-151.0,0.00026391,7]
[327935508,1716675046190,-191.822317,0.00026391,7]
[327935509,1716675046200,-191.822317,0.00026391,7]
[327935510,1716675046210,-151.0,0.00026391,7]
[327935511,1716675046219,-151.0,0.00026391,7]
[327935512,1716675046228,-151.0,0.00026391,7]
[327935513,1716675046237,-151.0,0.00026391,7]
[327935514,1716675046247,-151.0,0.00026391,7]
[327935515,1716675046256,-298.672706,0.00026391,7]
[327935516,1716675046265,-151.0,0.00026391,7]
[327935517,1716675046274,-151.0,0.00026391,7]
[327935518,1716675046283,-151.0,0.00026391,7]
[327935519,1716675046292,-332.410801,0.00026391,7]
[327935520,1716675046302,-332.410801,0.00026391,7]
[327935521,1716675046313,-368.658978,0.00026391,7]
[327935522,1716675046323,-368.658978,0.00026391,7]
[327935523,1716675046332,-150.13312094,0.00026391,2]
[327935524,1716675046341,-2996.197778,0.000264,2]
[327935525,1716675046350,-150.13312094,0.00026493,2]
[327935526,1716675046359,-151.0,0.00026534,7]
[327935527,1716675046368,-151.0,0.00026534,7]
[327935528,1716675046377,-467.847101,0.00026534,7]
[327935529,1716675046387,-151.0,0.00026534,7]
[327935530,1716675046398,-467.847101,0.00026534,7]
[327935531,1716675046408,-174.647328,0.00026534,7]
[327935532,1716675046418,-151.0,0.00026534,7]
[327935533,1716675046431,-151.0,0.00026534,7]
[327935534,1716675046442,-155.0359777,0.00026546,2]
[327935535,1716675046451,-1984.33991306,0.00026551,2]
[327935536,1716675046460,-21772.95426353,0.00026581,2]
[327935537,1716675046470,-1039.809313,0.0002659,2]
[327935538,1716675046479,-7500.0,0.00026596,2]
[327935539,1716675046488,-1500.0,0.000266,2]
[327935540,1716675046497,-246.67561179,0.000266,2]
[327935541,1716675046506,-2297.86635416,0.000266,2]
[327935542,1716675046515,-786.76,0.00026612,2]
[327935543,1716675046524,-150.0,0.00026658,2]
[327935544,1716675046544,-150.0,0.00026658,2]
[327935545,1716675046554,-150.0,0.00026658,2]
[327935546,1716675046564,-618.92358897,0.00026696,2]
[327935547,1716675046574,-472.45726553,0.00026696,2]
[327935548,1716675046583,-433.1400003,0.00026696,2]
[327935549,1716675046593,-155.81256225,0.00026696,2]
[327935550,1716675046603,-155.96690999,0.00026696,2]
[327935551,1716675046612,-274.58778746,0.00026696,2]
[327935552,1716675046622,-155.0,0.00026696,2]
[327935553,1716675046632,-790.26530989,0.00026696,2]
[327935554,1716675046642,-155.0,0.00026696,2]
[327935555,1716675046652,-155.97483836,0.00026696,2]
[327935556,1716675046662,-174.87662818,0.00026696,2]
[327935557,1716675046672,-155.33425455,0.00026696,2]
[327935558,1716675046681,-615.452466,0.00026696,2]
[327935559,1716675046691,-900.0,0.00026697,2]
[327935560,1716675046700,-700.0,0.00026697,2]
[327935561,1716675046710,-155.0,0.00026697,2]
[327935562,1716675046719,-2814.6457293,0.00026697,2]
[327935563,1716675046729,-151.0,0.00026698,7]
[327935564,1716675046739,-151.0,0.00026698,7]
[327935565,1716675046748,-151.0,0.00026698,7]
[327935566,1716675046760,-151.0,0.00026698,7]
[327935567,1716675046770,-151.0,0.00026698,7]
[327935568,1716675046780,-151.0,0.00026698,7]
[327935569,1716675046789,-151.0,0.00026698,7]
[327935570,1716675046799,-151.0,0.00026698,7]
[327935571,1716675046809,-151.0,0.00026698,7]
[327935572,1716675046818,-151.0,0.00026698,7]
[327935573,1716675046828,-151.0,0.00026698,7]
[327935574,1716675046837,-151.0,0.00026698,7]
[327935575,1716675046848,-151.0,0.00026698,7]
[327935576,1716675046857,-151.0,0.00026698,7]
[327935577,1716675046867,-164.466534,0.00026698,7]
[327935578,1716675046877,-164.466534,0.00026698,7]
[327935579,1716675046886,-151.0,0.00026698,7]
[327935580,1716675046896,-151.0,0.00026698,7]
[327935581,1716675046905,-151.0,0.00026698,7]
[327935582,1716675046915,-151.0,0.00026698,7]
[327935583,1716675046924,-194.149248,0.00026698,7]
[327935584,1716675046934,-194.149248,0.00026698,7]
[327935585,1716675046944,-151.0,0.00026698,7]
[327935586,1716675046953,-162.146351,0.00026698,7]
[327935587,1716675046963,-151.0,0.00026698,7]
[327935588,1716675046972,-151.0,0.00026698,7]
[327935589,1716675046982,-162.146351,0.00026698,7]
[327935590,1716675046991,-152.01162,0.00026698,7]
[327935591,1716675047001,-151.0,0.00026698,7]
[327935592,1716675047010,-151.0,0.00026698,7]
[327935593,1716675047020,-163.29229,0.00026698,7]
[327935594,1716675047031,-154.125404,0.00026698,7]
[327935595,1716675047041,-151.0,0.00026698,7]
[327935596,1716675047051,-151.0,0.00026698,7]
[327935597,1716675047061,-151.0,0.00026698,7]
[327935598,1716675047071,-266.724653,0.00026698,7]
[327935599,1716675047081,-52949.1485,0.00026698,2]
[327935600,1716675047091,-8562.96709623,0.000267,2]
[327935601,1716675047100,-2991.26798842,0.000267,2]
[327935602,1716675047111,-4166.4434,0.000268,2]
[327935603,1716675047121,-16097.8746,0.000268,2]
[327935604,1716675047132,-3709.2317,0.000268,2]
[327935605,1716675047141,-151.0,0.000268,7]
[327935606,1716675047151,-151.0,0.000268,7]
[327935607,1716675047161,-151.0,0.000268,7]
[327935608,1716675047170,-151.0,0.000268,7]
[327935609,1716675047180,-151.0,0.000268,7]
[327935610,1716675047189,-151.0,0.000268,7]
[327935611,1716675047199,-151.0,0.000268,7]
[327935612,1716675047208,-332.410801,0.000268,7]
[327935613,1716675047218,-332.410801,0.000268,7]
[327935614,1716675047229,-368.658978,0.000268,7]
[327935615,1716675047239,-368.658978,0.000268,7]
[327935616,1716675047249,-151.0,0.000268,7]
[327935617,1716675047260,-151.0,0.000268,7]
[327935618,1716675047270,-151.0,0.000268,7]
[327935619,1716675047280,-226.056258,0.000268,7]
[327935620,1716675047294,-151.0,0.000268,7]
[327935621,1716675047304,-151.0,0.000268,7]
[327935622,1716675047314,-226.056258,0.000268,7]
[327935623,1716675047324,-260.073707,0.000268,7]
[327935624,1716675047334,-151.0,0.000268,7]
[327935625,1716675047344,-267.101203,0.000268,7]
[327935626,1716675047354,-151.0,0.000268,7]
[327935627,1716675047364,-450.070366,0.000268,7]
[327935628,1716675047375,-450.070366,0.000268,7]
[327935629,1716675047384,-151.0,0.000268,7]
[327935630,1716675047394,-154.53303561,0.0002685,2]
[327935631,1716675047404,-1025.21672019,0.00026852,2]
[327935632,1716675047416,-500.0,0.000269,2]
[327935633,1716675047426,-1000.0,0.000269,2]
[327935634,1716675047436,-77137.4434,0.000269,2]
[327935635,1716675047446,-151.0,0.000269,7]
[327935636,1716675047455,-151.0,0.000269,7]
[327935637,1716675047466,-1758.12,0.000269,2]
[327935638,1716675047476,-151.0,0.000269,7]
[327935639,1716675047485,-151.0,0.000269,7]
[327935640,1716675047496,-151.0,0.000269,7]
[327935641,1716675047506,-202.312435,0.000269,7]
[327935642,1716675047516,-202.312435,0.000269,7]
[327935643,1716675047525,-151.0,0.000269,7]
[327935644,1716675047535,-151.0,0.000269,7]
[327935645,1716675047545,-151.0,0.000269,7]
[327935646,1716675047554,-151.0,0.000269,7]
[327935647,1716675047564,-151.0,0.000269,7]
[327935648,1716675047575,-151.0,0.000269,7]
[327935649,1716675047585,-151.0,0.000269,7]
[327935650,1716675047595,-151.0,0.000269,7]
[327935651,1716675047605,-151.0,0.000269,7]
[327935652,1716675047620,-205.3847,0.000269,7]
[327935653,1716675047630,-151.0,0.000269,7]
[327935654,1716675047639,-151.0,0.000269,7]
[327935655,1716675047649,-151.0,0.000269,7]
[327935656,1716675047659,-151.0,0.000269,7]
[327935657,1716675047669,-151.0,0.000269,7]
[327935658,1716675047679,-151.0,0.000269,7]
[327935659,1716675047689,-152.18117,0.000269,7]
[327935660,1716675047699,-153.072262,0.000269,7]
[327935661,1716675047709,-191.822317,0.000269,7]
[327935662,1716675047719,-191.822317,0.000269,7]
[327935663,1716675047730,-151.0,0.000269,7]
[327935664,1716675047740,-151.0,0.000269,7]
[327935665,1716675047750,-151.0,0.000269,7]
[327935666,1716675047760,-151.0,0.000269,7]
[327935667,1716675047769,-151.0,0.000269,7]
[327935668,1716675047779,-151.0,0.000269,7]
[327935669,1716675047789,-151.0,0.000269,7]
[327935670,1716675047799,-467.847101,0.000269,7]
[327935671,1716675047809,-151.0,0.000269,7]
[327935672,1716675047818,-467.847101,0.000269,7]
[327935673,1716675047828,-151.0,0.000269,7]
[327935674,1716675047838,-151.0,0.000269,7]
[327935675,1716675047849,-151.0,0.000269,7]
[327935676,1716675047859,-151.0,0.000269,7]
[327935677,1716675047869,-151.0,0.000269,7]
[327935678,1716675047878,-164.466534,0.000269,7]
[327935679,1716675047888,-164.466534,0.000269,7]
[327935680,1716675047898,-151.0,0.000269,7]
[327935681,1716675047908,-151.0,0.000269,7]
[327935682,1716675047917,-151.0,0.000269,7]
[327935683,1716675047927,-151.0,0.000269,7]
[327935684,1716675047936,-194.149248,0.000269,7]
[327935685,1716675047946,-194.149248,0.000269,7]
[327935686,1716675047956,-1500.0,0.000269,2]
[327935687,1716675047967,-151.0,0.000269,7]
[327935688,1716675047976,-162.146351,0.000269,7]
[327935689,1716675047986,-151.0,0.000269,7]
[327935690,1716675047996,-151.0,0.000269,7]
[327935691,1716675048005,-162.146351,0.000269,7]
[327935692,1716675048015,-151.0,0.000269,7]
[327935693,1716675048025,-151.0,0.000269,7]
[327935694,1716675048034,-151.0,0.000269,7]
[327935695,1716675048044,-151.0,0.000269,7]
[327935696,1716675048053,-151.0,0.000269,7]
[327935697,1716675048063,-266.724653,0.000269,7]
[327935698,1716675048072,-157.84366425,0.00026929,2]
[327935699,1716675048081,-810.84666127,0.00026989,2]
[327935700,1716675048091,-1200.0,0.00027,2]
[327935701,1716675048100,-151.0,0.00027,7]
[327935702,1716675048110,-151.0,0.00027,7]
[327935703,1716675048121,-151.0,0.00027,7]
[327935704,1716675048131,-226.056258,0.00027,7]
[327935705,1716675048140,-151.0,0.00027,7]
[327935706,1716675048151,-151.0,0.00027,7]
[327935707,1716675048160,-226.056258,0.00027,7]
[327935708,1716675048170,-151.0,0.00027,7]
[327935709,1716675048180,-151.0,0.00027,7]
[327935710,1716675048190,-450.070366,0.00027,7]
[327935711,1716675048199,-450.070366,0.00027,7]
[327935712,1716675048209,-151.0,0.00027,7]
[327935713,1716675048219,-150.0,0.00027068,2]
[327935714,1716675048229,-150.0,0.00027068,2]
[327935715,1716675048239,-150.0,0.00027068,2]
[327935716,1716675048248,-150.0,0.00027068,2]
[327935717,1716675048258,-200.0,0.00027072,2]
[327935718,1716675048268,-500.0,0.00027072,2]
[327935719,1716675048278,-157.84366425,0.00027095,2]
[327935720,1716675048288,-151.0,0.00027096,7]
[327935721,1716675048298,-151.0,0.00027096,7]
[327935722,1716675048308,-151.0,0.00027096,7]
[327935723,1716675048317,-156.647059,0.00027096,7]
[327935724,1716675048327,-151.0,0.00027096,7]
[327935725,1716675048337,-151.0,0.00027096,7]
[327935726,1716675048348,-151.0,0.00027096,7]
[327935727,1716675048357,-332.410801,0.00027096,7]
[327935728,1716675048369,-332.410801,0.00027096,7]
[327935729,1716675048378,-368.658978,0.00027096,7]
[327935730,1716675048388,-368.658978,0.00027096,7]
[327935731,1716675048397,-1984.33991306,0.00027109,2]
[327935732,1716675048408,-309.542277,0.00027123,2]
[327935733,1716675048418,-251.63637975,0.00027126,2]
[327935734,1716675048428,-2524.66386597,0.0002713,2]
[327935735,1716675048438,-256.20983874,0.00027131,2]
[327935736,1716675048447,-60999.12702656,0.00027173,2]
[327935737,1716675048458,-34352.07514668,0.00027173,2]
[327935738,1716675048468,-151.0,0.00027173,7]
[327935739,1716675048477,-162.146351,0.00027173,7]
[327935740,1716675048489,-151.0,0.00027173,7]
[327935741,1716675048500,-151.0,0.00027173,7]
[327935742,1716675048510,-162.146351,0.00027173,7]
[327935743,1716675048519,-151.0,0.00027173,7]
[327935744,1716675048529,-151.0,0.00027173,7]
[327935745,1716675048538,-151.0,0.00027173,7]
[327935746,1716675048548,-151.0,0.00027173,7]
[327935747,1716675048558,-151.0,0.00027173,7]
[327935748,1716675048568,-266.724653,0.00027173,7]
[327935749,1716675048577,-159.15319227,0.00027174,2]
[327935750,1716675048587,-527.0,0.0002719,2]
[327935751,1716675048597,-615.68,0.00027226,2]
[327935752,1716675048607,-720.72,0.0002723,2]
[327935753,1716675048616,-900.0,0.00027245,2]
[327935754,1716675048627,-700.0,0.00027245,2]
[327935755,1716675048636,-603.0143,0.00027263,2]
[327935756,1716675048646,-151.0,0.00027264,7]
[327935757,1716675048655,-151.0,0.00027264,7]
[327935758,1716675048665,-151.0,0.00027264,7]
[327935759,1716675048674,-151.0,0.00027264,7]
[327935760,1716675048684,-151.0,0.00027264,7]